{"text_format":"1","workbook":"xlsx","n_sheets":4,"sheets":["Инструкция","Ввод данных ВЛК","Карта","invisible"],"not_rendered":{"charts":1,"images":9,"macros":1,"external_links":0,"defined_names":0,"comments":0,"pivot_tables":0},"unopened":[],"bounds":{"document_bytes":16777216,"sheet_cells":100000,"rows_first":2000,"rows_last":500,"rows_between":2000,"halvings":0,"cell_chars":16384,"cell_head_chars":4096},"cells_cut":0,"cells_raw":0,"read":"whole","date_system":"1900"}

{"sheet":"Инструкция","index":0,"n_rows":418,"n_cols":9,"rows_kept":418,"cut":false,"hidden":false,"merged":[[395,6,395,10],[411,0,411,5],[402,6,402,10],[403,0,403,2],[403,3,403,5],[403,6,403,10],[404,0,404,2],[404,3,404,5],[404,6,404,10],[400,3,400,5],[400,0,400,2],[401,0,401,2],[401,3,401,5],[399,6,399,10],[400,6,400,10],[401,6,401,10],[397,0,397,2],[397,3,397,5],[398,3,398,5],[396,6,396,10],[397,6,397,10],[398,6,398,10],[26,0,26,4],[417,0,417,1],[398,0,399,2],[396,0,396,2],[396,3,396,5],[399,3,399,5],[402,0,402,2],[402,3,402,5],[395,0,395,2],[395,3,395,5]]}
["Прежде чем приступить к использованию ВЛК  для контроля ИФА "]
["и построению карты ВЛК рекомендуется:"]
["• изучить методическое пособие  «Внутрилабораторный контроль качества"]
[" неколичественных методов ИФА» :"]
["http://www.vector-best.ru/publ/doc/9652.php"]
["• Приобрести контрольные материалы ВЛК, ОДС и МИНИпол ( ссылка на каталог продукции "]
["ЗАО \"Вектор-Бест\" ):     "]
["http://www.vector-best.ru/prod/cat.php?id=control&cat=0"]
["• Ознакомиться с данной инструкцией  по работе с файлом «контрольная карта ВЛК»"]
[]
["Введение. "]
["Программа предназначена для  построения карты ОДНОГО из четырех"]
[" контрольных материалов: ВЛК анти-ВИЧ-1, ВЛК HBsAg, ВЛК анти-ВГС или "]
["ВЛК-антипаллидум. При необходимости одновременной работы с несколькими разными ВЛК "]
["необходимо создать новую копию файла и переименовать в соответствии с маркером. "]
["Например, «контрольная карта ВЛК HBsAg» или «контрольная карта ВЛК анти-ВГС».  "]
["В один файл следует вводить данные только одной серии ВЛК определенного маркера."]
[]
["Изначально файл состоит из листа \"Инструкция\" и двух рабочих листов: «Ввод данных ВЛК» и «Карта». "]
["По мере накопления данных будут автоматически генерироваться  листы  архива."]
[]
["ВАЖНО: названия  двух рабочих листов («Ввод данных ВЛК» и «Карта») менять нельзя!"]
[]
["Работа программы разбита на три этапа соответственно трем  этапам работы  "]
["с контрольным материалом  ( см.  методическое пособие  «Внутрилабораторный "]
["контроль качества неколичественных методов ИФА»"]
[" http://www.vector-best.ru/publ/doc/9652.php)"]
["Этап 1. оценка сходимости ВЛК (оценка разброса данных в одной аналитической серии)"]
["Этап 2. оценка промежуточной прецизионности ВЛК  (определение границ карты)"]
["Этап 3. оперативный контроль ИФА  (построение карты ВЛК, применение правил Вестгарда) "]
["На каждом из трех этапов  работы с контрольным материалом Вам необходимо "]
["заполнять таблицы  листа «Ввод данных ВЛК», после чего «кликать» (щелкать "]
["левой кнопкой мыши) по кнопке с названием соответствующего этапа на экране монитора."]
["           После перехода к Этапу 3,  оперативному контролю, на листе «Карта» "]
["программа начинает автоматическое построение графика ВЛК с контрольными "]
["границами, определенными на Этапе 2 в Вашей лаборатории. "]
["При накоплении данных программа будет помещать их вместе с графиками "]
["на   новые листы «Архив», а карта в стадии построения всегда будет на листе «Карта». "]
[]
["Порядок работы. "]
["Ваши действия на Этапе 1:"]
["•        Перед работой с программой сделать резервные копии файла. "]
["Можно сохранять их на разных носителях (другом диске, другом компьютере)"]
["•       Рекомендуется закрыть браузер (Internet Explorer, Mozilla Firefox и т. п.)"]
["•       Копировать файл, переименовать копию в соответствии с  названием "]
[" контрольного материала (анти-ВИЧ-1, HBsAg, анти-ВГС или антипаллидум)"]
["•       Выбрать лист «Ввод данных ВЛК»"]
[]
[]
[]
[]
[]
[]
[]
[]
[]
[]
[]
[]
[]
[]
[]
[]
[]
[]
[]
[]
[]
["При оценке повторяемости (сходимости) ВЛК на Этапе 1 Вам нужно заполнить ячейки серого цвета: "]
[]
["•        Выбрать наименование ВЛК - маркер, с которым Вы собираетесь работать  "]
["           (анти-ВИЧ-1, HBsAg, анти-ВГС или антипаллидум). Список маркеров в ячейке (клетке) G1. "]
["•         Внести (в ячейку H1) № серии ВЛК, с которым Вы будете работать."]
["•         Внести (в ячейку L1) № по каталогу набора реагентов для ИФА, с которым Вы будете работать"]
["•        Внести (в ячейку M1) № серии набора реагентов для ИФА, с которым Вы будете работать"]
["•         Внести в соответствующие ячейки таблицы ОП крит, ОП ОДС, ОП МИНИпол "]
["и десять значений ОП ВЛК одной аналитической серии (результаты ИФА, "]
["полученные одновременно  на одном планшете в одной процедуре анализа). "]
[]
["После заполнения всех семнадцати серых ячеек Этапа 1  нужно щелкнуть по серой "]
[" прямоугольной кнопке:     "]
[]
[]
[]
[]
[]
["                                                                                                   ."]
["ВАЖНО: программой  введены ограничения на значения ОП: от 0,000 до 10,000."]
["Отделяйте дробную часть числа запятой, а не точкой, иначе данное "]
[" значение воспримется программой как текст и не будет обработано."]
["При нажатии на кнопки «Этап 1», «Этап 2» или «Этап 3» возможно мелькание "]
["монитора приблизительно в течение 1-20 сек в зависимости от возможностей "]
["Вашего компьютера. В это время не следует предпринимать никаких действий, "]
["просто переждать до появления устойчивого значка курсора."]
["Не забывайте сохранять файл! В противном случае введенные данные "]
["будут утеряны."]
["Если полученные данные удовлетворяют заданным параметрам*, появится "]
["сообщение с разрешением перейти к следующему этапу: "]
[]
["Вывод: CV10 ниже предельно допустимого (11,3%) "]
[" Можно переходить к определению границ карты, к Этапу 2"]
[]
["При грубых нарушениях в процессе ИФА переход  к следующему этапу может быть "]
["заблокирован программой. Об этом будет сообщение на экране, например, такое: "]
[]
["Вывод:CV10 выше предельно допустимого (11,3%)  "]
["Необходимо найти и устранить ошибки ИФА"]
["Новые значения ОП вносить в эту же таблицу"]
[]
["В этом случае Вам необходимо: "]
["•     найти ошибку,"]
["•     исправить ее,"]
["•     повторить анализ, "]
["•     внести новые данные вместо неправильных   в ту же самую таблицу "]
["•     щелкнуть по кнопке Этап 1. "]
["•     Повторять поиск ошибок до получения удовлетворительных результатов (разрешения "]
["        на переход к этапу 2)"]
[]
[" * Используемые в программе  предельно допустимые значения коэффициентов "]
["вариации CVсход получены эмпирическим путем на основании анализа результатов "]
["выявления ВЛК HBsAg , ВЛК анти-ВГС и ВЛК анти-ВИЧ-1 лабораториями-"]
["-участницами разных циклов Программы внешней оценки качества (ПВОК) "]
["ЗАО «Вектор-Бест» на наборах разных серий  одного изготовителя "]
["(для подсчета СVсход.) и разных изготовителей (для подсчета CVвоспр)."]
["Нетесова И.Г. и др.//Клин. Лаб. Диагн., -  2007,№3, С.47-50."]
[]
["Ваши действия на Этапе 2:"]
["Если разрешен переход на Этап 2, начинайте вводить результаты в таблицу."]
[]
[]
[]
[]
[]
[]
[]
[]
[]
[]
[]
[]
[]
[]
[]
[]
[]
[]
[]
[]
[]
[]
[]
[]
[]
[]
[]
["     ** Определить в первой аналитической серии ОП крит, ОП ОДС, ОП МИНИпол и ОП ВЛК"]
["•       Внести в таблицу Этапа 2 (ячейки оливкового цвета) значение ОП крит"]
["•       Внести ОП ОДС"]
["•       Внести ОП МИНИпол"]
["•      Внести ОП ВЛК"]
["       Для контроля полученных и внесенных  результатов по каждой (одной)"]
[" аналитической серии  кликнете левой кнопкой мыши по серой кнопке Этап 2.  ** "]
[]
[]
[]
[]
[]
[]
[]
["                                                                                                   ."]
["Повторять перечисленные действия (от **  до**)   двадцать раз –"]
[" до заполнения таблицы Этапа 2."]
["ВАЖНО: При нажатии на кнопки «Этап 1», «Этап 2» или «Этап 3» возможно"]
[" мелькание монитора в течение 1-20 сек в зависимости от возможностей "]
["Вашего компьютера. В это время не следует предпринимать никаких "]
["действий, просто дождаться  появления устойчивого значка курсора."]
[]
["Не забывайте сохранять файл! В противном случае введенные данные будут утеряны. "]
[]
["После каждого нажатия на кнопку Этап 2 внимательно перечитывайте сообщения  "]
["и следуйте советам программы, например:"]
[]
["ОП ОДС<ОП крит<ОП МИНИпол, верно "]
["Отклонение ОП ВЛК от среднего меньше 3S, верно",null,null,null,null,null,null,null," "]
["CV20<14.2%, верно "]
["Необходимо внести результаты 20 измерений ОП"]
[]
["После такого сообщения разрешается внести результаты следующей аналитической серии."]
[]
[" Если сообщение имеет вид:"]
[]
["ОП ОДС<ОП крит<ОП МИНИпол, верно "]
["Отклонение ОП ВЛК от среднего меньше 3S, верно  "]
["CV20 не должен превышать 14,2%  "]
["Необходимо внести результаты 20 измерений ОП  "]
[]
["Вам следует найти ошибку, устранить, снова заполнить строку таблицы."]
[]
["Это означает,  что CV превысил контрольную границу, и необходимо повторять поиск ошибок "]
["до получения удовлетворительных результатов. Кроме того, получены результаты, "]
["менее чем двадцати аналитических серий.  Нет разрешения для перехода к Этапу 3. "]
[]
["При вводе данных в таблицу Этапа 2 возможно  окрашивание вводимых значений "]
["ВЛК в синий или красный цвет, так как программа автоматически вычисляет X (среднее)"]
[" и S (стандартное отклонение) для ВЛК по всем введенным значениям. Если в таблице"]
[" Этапа 2 значение ОП ВЛК  окрасится в синий цвет, значит, оно выходит за пределы"]
[" X±2S, и находится в области (X-3S;X-2S) или (X+2S;X+3S).  Если значение ОП ВЛК аналитических "]
["серий  окрашивание может исчезнуть, поскольку X и S будут пересчитаны с учетом "]
["и последних значений, внесенных в таблицу. "]
[]
["Значения ОП ОДС и ОП МИНИпол тоже могут окрашиваться в красный цвет. Это сигнализирует"]
[" о том, что не выполняется одно из неравенств: ОП ОДС <ОП крит  или ОП МИНИпол >ОП крит. "]
[]
[]
[]
[]
[]
[]
[]
[]
[]
[]
[]
[]
[]
[]
[]
[]
[]
[]
[]
["     На рисунке показаны результаты Этапа 2.  Значение ОП ВЛК пятнадцатой аналитической "]
["серии окрасилось в синий цвет – это результат выхода ОП ВЛК за предупредительную "]
["границу X+2S. Красным окрашены ОП МИНИпол и ОП ВЛК семнадцатой аналитической "]
["серии. В данном случае требуется найти ошибку семнадцатой аналитической серии, устранить ее,"]
[" повторить анализ, внести новые результаты в 17-ю строку таблицы, нажать кнопку Этап 2,"]
["внести новые результаты в 17-ю строку таблицы, нажать кнопку Этап2, затем продолжить "]
["затем продолжить заполнение таблицы. "]
["       Кроме того, следует обратить внимание на результаты  пятнадцатой аналитической серии,"]
["проанализировать возможные причины  более высоких значений ОП крит, ОП МИНИпол и ОП ВЛК."]
["Столбец Автопроверка заполнять не требуется. Результаты проверки появляются "]
["в нем автоматически после нажатия на кнопку Этап 2."]
["ВАЖНО:  Если программа требует найти и устранить ошибку, нельзя продолжить"]
[" заполнение таблицы, оставив «на потом» поиск ошибок предыдущей "]
["аналитической серии.  Данные, полученные после устранения ошибки, необходимо "]
["вносить в те же ячейки таблицы, вместо неверных результатов; затем нажать "]
["кнопку Этап 2. Поиск ошибок следует повторять до получения удовлетворительных "]
["значений, при этом  введенные в таблицу значения перестанут окрашиваться "]
["в красный цвет, и исчезнет сообщение об ошибке."]
[" После получения удовлетворительных данных двадцати аналитических серий ИФА "]
["и заполнения всей таблицы Этапа 2 Вы получите разрешение на переход к Этапу 3, "]
["например, такое:"]
["ОП ОДС<ОП крит<ОП МИНИпол, верно  "]
["Отклонение ОП ВЛК от среднего меньше 3S, верно  "]
["CV20<19%, верно  "]
["Вывод: можно пользоваться этой картой ВЛК"]
["В любом случае Вам необходимо получить удовлетворительные результаты "]
["в двадцати аналитических сериях."]
["Ваши действия на Этапе 3:"]
["Если разрешен переход на Этап 3, начинайте вводить результаты в таблицу. "]
["  •       Внести в таблицу Этапа 3 (ячейки желтого цвета) дату ИФА (или другой  "]
["идентификатор аналитической серии), ОП крит и ОП ВЛК первой аналитической серии"]
["•         Внести ОП ОДС  и  ОП МИНИпол, если данные контрольные материалы "]
["использовались"]
["•         Для контроля полученных и внесенных  результатов каждой (одной) "]
["аналитической серии  кликнете левой кнопкой мыши по серой кнопке Этап 3.    "]
[]
[]
[]
[]
[]
[]
[]
[]
[]
[]
[]
[]
[]
[]
[]
[]
[]
[]
[]
[]
[]
[]
["После определения границ карты для Вашей лаборатории (на Этапе 2) при каждом "]
["последующем проведении ИФА (в каждой аналитической серии) необходимо "]
["исследовать образец ВЛК той же серии, что была использована при построении "]
["карты. ДАТЫ проведения анализа и ОП соответствующих лунок (ОП ОДС, ОП крит, "]
["ОП МИНИпол, ОП ВЛК) следует вносить в ячейки (клетки), выделенные желтым "]
["цветом, а затем после заполнения каждой строки ячеек щелкать по кнопке «Этап 3»."]
["Поскольку Значение ОП ВЛК без привязки к определенной аналитической серии "]
["не имеет смысла, Вы получите напоминание, если забудете заполнить ячейку Дата, ( или две"]
[" аналитические серии обозначите одинаково),  а работа программы будет прервана  до заполнения "]
[" этой ячейки и нажатия на кнопку Этап3."]
[]
[null,null,null,null,null,null,null,"В данном случае необходимо "]
[null,null,null,null,null,null,null,"нажать “OK” на кнопке сообщения, "]
[null,null,null,null,null,null,null,"после чего  заполнить ячейку Дата, "]
[null,null,null,null,null,null,null,"и нажать на кнопку  Этап 3."]
[]
[]
[]
["При заполнении таблицы Этапа 3  возможно окрашивание вводимых значений ОП ОДС и "]
["ОП МИНИпол в красный цвет, а ОП ВЛК в синий и красный.  Принцип окрашивания на Этапе 3 "]
["тот же, что на Этапе 2.  "]
[]
["ВАЖНО:  Если на Этапе 3 значения ОП ОДС или ОП МИНИпол окрасятся в красный цвет"]
["(ОП ОДС превысит ОП крит или ОП крит превысит  ОП МИНИпол ),"]
[" а ОП ВЛК в пределах карты (X±3S), компьютерная программа  не запретит построение "]
["графика, но Вы должны разобраться в причинах допущенной ошибки."]
[]
[]
[]
[]
[]
[]
[]
[]
[" На рисунке представлены данные  ИФА трех аналитических  серий."]
[" В данном случае необходимо разобраться в причинах высокого значения ОП ОДС "]
["01.04.12 и низкого значения ОП МИНИпол 02.04.12 (выделены красным), а также  найти "]
["ошибку при проведении ИФА 03.04.12; устранить эту ошибку и повторить третью "]
["аналитическую серию без ошибок."]
[]
["Помимо построения контрольной карты ВЛК программа оценивает полученные Вами "]
["результаты с применением правил Вестгарда. Выводы о наличии или отсутствии ошибок "]
["ИФА располагаются на листе «Ввод данных ВЛК». Например, для данных  предыдущего"]
[" рисунка выводы имеют следующий вид:"]
[]
[]
[]
[]
[]
[]
[]
[]
[]
["ВАЖНО: не забывайте нажимать кнопку Этап3 после внесения результатов каждой "]
["аналитической серии. Программа проверяет по правилам Вестгарда внесенные результаты"]
[" только последней  аналитической серии, не перепроверяя предыдущие."]
["Если внесены результаты двух и более саерий без нажатия кнопки Этап 3, необходимо "]
[" удалить  необработанные результаты и снова вносить в таблицу по одной серии, не забывая "]
[" после  внесения результатов каждой из них  нажимать на кнопку Этап3."]
[]
[]
[" Одновременно на листе «Карта» будет автоматически строиться график ВЛК с контрольными"]
[" границами для Вашей лаборатории, определенными на Этапе2.  "]
["По мере накопления данных программа будет помещать их вместе с графиками"]
[" (порциями по 51 измерению ОП) на   новые листы, а карта в стадии построения"]
[" всегда будет на листе «Карта»:"]
[]
[]
[]
[]
[]
[]
[]
[]
[]
[]
[]
[]
[]
[]
[]
[]
[]
[]
[]
[]
[]
[]
[]
[]
["Как только будет внесено 51-е значение ОП ВЛК и нажата кнопка «Этап3», автоматически "]
["образуется архивный лист с картой ВЛК и первыми пятьюдесятью одним значением. "]
["Дальнейшее построение карты с теми же границами продолжится на листе «Карта», "]
["причем, в качестве  первого значения ОП ВЛК  будет 51-е с предыдущего архивного листа. "]
["И т.д. Архивному листу автоматически присвоится особое название,  состоящее из слова"]
[" «Архив» и названий первой и пятьдесят первой аналитических серий, например,"]
[" «Архив_ 01.04.12_20.03.12». Название этого листа разрешается менять по вашему желанию."]
[]
["ПОМНИТЕ, в отличие от архивных листов, названия  двух  рабочих листов"]
[" («Ввод данных ВЛК» и «Карта») менять нельзя!"]
["При заполнении столбца “Дата” для идентификации аналитической серии можно вводить буквы и "]
["цифры, но без знаков / \\ ,* > <"]
["ВАЖНО: Не используйте окрашенную часть листа для своих заметок – цветные поля"]
[" нужны программе для построения карты, при работе программы часть Вашей информации"]
[" может быть утеряна. "]
[]
["Возможные неполадки в работе программы и способы их устранения."]
["Проблема",null,null,"Возможные причины",null,null,"Способ устранения"]
["Нет ячеек G1, H1, L1, M1, так как обозначение столбцов не буквенное, а цифровое",null,null,"В настройках Вашего приложения Excel используется стиль ссылок R1C1, что не влияет на работу программы",null,null,"Ячейке G1 соответствует ячейка (7; 1), Н1 =(8; 1), L1=(12; 1), М1= (13; 1)                                                   Чтобы включить или отключить использование стиля ссылок R1C1, установите или снимите флажок Стиль ссылок R1C1 в разделе Работа с формулами категории Формулы в диалоговом окне Параметры Excel. Чтобы открыть это окно, перейдите на вкладку Файл."]
["Не получается использовать программу для построения карты ВЛК анти-краснуха, корь, герпес и т. п.",null,null,"Не определены контрольные границы карт ВЛК; ПВОК по маркерам данных инфекций не проводились",null,null,"В следующих версиях программы будет возможность самостоятельно задавать значения границ допуска"]
["Не могу внести в таблицу значение ОП ВЛК",null,null,"Попытка внести значение ОП ВЛК<ОП крит, либо большее 10, либо отрицательное.",null,null,"Найти ошибку ИФА, устранить, повторить анализ, внести полученное  правильное значение ОП крит<ОП ВЛК<10.000"]
[null,null,null,"Используется точка для отделения целой части числа от дробной части",null,null,"Используйте запятую для отделения целой части числа от дробной"]
["При исправлении в таблице результаты не изменились",null,null,"Не нажата кнопка Этап",null,null,"Нажать кнопку Этап"]
["При нажатии на кнопку Этап изображение на экране монитора дергается.",null,null,"В зависимости от возможностей компьютера мелькание монитора длится приблизительно 1-20сек",null,null,"Ничего не трогать, переждать 1-20 сек до устойчивой картинки монитора."]
["Исправили ошибку ИФА на Этапе 2, вывод программы правильный, но значения окрашены в красный цвет.",null,null,"Исправления внесены НЕ В ПОСЛЕДНЮЮ из заполненных строк таблицы. Заполнена следующая строка ниже исправленной, после этого нажата кнопка Этап2.",null,null,"Удалить данные из строки, следующей за исправленной, нажать кнопку Этап 2; внести в следующую строку удаленные данные, нажать кнопку Этап 2."]
["После переименования листа программа не работает, компьютер выдает сообщение об ошибке.",null,null,"Переименован лист «Ввод данных ВЛК» или лист «Карта»",null,null,"Вернуться к старым названиям листов."]
["Пропущены результаты оценки с использованием правил Вестгарда предпоследней  аналитической серии (нескольких серий), но последняя оценена.",null,null,"Программа обрабатывает результаты последней аналитической серии",null,null,"Удалить результаты ОП ВЛК последних аналитических серий до первой из необработанных по правилам Вестгарда, нажать кнопку Этап3; затем вносить результаты следующих аналитических серий, после каждой нажимая на кнопку Этап3."]
[]
["При возникновении вопросов  обращайтесь по тел. (383) 332-24-45   [ЗАО «Вектор-Бест», "]
["отделение ИФА гепатита B]   или по e-mail: pvok@vector-best.ru;  yarolga@vector-best.ru  "]
[]
[]
["Это каталог продукции ЗАО Вектор-Бест, где можно найти МИНИпол, ОДС, и разные ВЛК"]
["http://www.vector-best.ru/prod/cat.php?id=control&cat=0"]
[]
["Методическое пособие по внутрилабораторному контролю качества ИФА"]
["http://www.vector-best.ru/publ/doc/9652.php"]
[]
[]
["2013-05-28"]

{"sheet":"Ввод данных ВЛК","index":1,"n_rows":52,"n_cols":14,"rows_kept":52,"cut":false,"hidden":false,"merged":[[26,2,27,2],[26,3,27,3],[26,4,27,4],[26,5,27,5],[26,0,27,0],[26,1,27,1]]}
["          Этап 1 Оценка повторяемости (сходимости) ВЛК",null,null,null,null,null,null,null,"серия.","Набор реагентов"]
["Ввести  значения оптической плотности (ОП) ОП крит,ОП ОДС, ОП МИНИпол и ОП ВЛК"]
["в одной аналитической серии (на одном планшете)"]
[null,"ОП крит=",null,""]
[null,"ОП ОДС=",null,"<ОПкрит, верно"]
[null,"ОП МИНИпол=",null,">=ОП крит, верно"]
[]
[null,"№"]
[null,"измерения",null,null,null,"Среднее  арифметическое  (Х) =",1.0399999999999998]
[null,1,null,null,null,"Стандартное  отклонение (S) =",5.1639777949432274E-2]
[null,2,null,null,null,"Коэффициент вариации (CV10)=",4.9653632643684886E-2]
[null,3,null,null,""]
[null,4,null,"Вывод:CV10 ниже предельно допустимого (15%)"]
[null,5,null,"Можно переходить к определению границ карты, к Этапу 2"]
[null,6,null,""]
[null,7,null,"",null,null,null,null,null,null,null,null,null," "]
[null,8]
[null,9,null,null,null,null,null,null,""]
[null,10,null,null,null,null,null,null,""]
[null,null,null,null,null,null,null,null,{"$f":"IF(XEX20=\"\",\"\",West2_2S(XFC1048569,XFC1048570,XEX20,#REF!))","v":""}]
["    Этап 2 Оценка промежуточной прецизионности ВЛК",null,null,null,null,null,null,null,""]
["Определение границ карты ВЛК",null,null,null,null,null,null,null,""]
["Вводить значения ОП крит, ОП ОДС, ОП МИНИпол и ОП ВЛК",null,null,null,null,null,null,null,""]
["каждой аналитической серии"]
[]
[]
["№ аналитич серии","ОП крит","ОП ОДС","ОП МИНИпол","ОП ВЛК","автопроверка:   ОП ОДС<ОП кр  ОП мини>ОП кр",34]
[]
[1]
[2]
[3]
[4]
[5]
[6]
[7]
[8]
[9]
[10]
[11]
[12]
[13]
[14]
[15]
[16]
[17]
[18]
[19]
[20]
[]
[]
["Этап 3 Оперативный контроль ИФА",null,null,null,null,{"$f":"29+COUNTIF(E53:E103,\"\")","v":80},null,null,null,null,"Автоматическая оценка результатов исследования ВЛК"]
["Дата","ОП ОДС","ОП крит","ОП МИНИ","ОП ВЛК",null,null,null,null,null,"с использованием контрольных  правил Вестгарда"]

{"sheet":"Карта","index":2,"n_rows":0,"n_cols":0,"rows_kept":0,"cut":false,"hidden":false,"merged":[]}

{"sheet":"invisible","index":3,"n_rows":8,"n_cols":12,"rows_kept":8,"cut":false,"hidden":true,"merged":[]}
[null,null,null,null,null,null,null,null,"ОП крит20","ОП ОДС20","ОП мини20","ОПВЛК20"]
[null,null,null,null,null,null,null,"X",{"$f":"AVERAGE('Ввод данных ВЛК'!B29:B48)","v":{"$error":"#DIV/0!"}},{"$f":"AVERAGE('Ввод данных ВЛК'!C29:C48)","v":{"$error":"#DIV/0!"}},{"$f":"AVERAGE('Ввод данных ВЛК'!D29:D48)","v":{"$error":"#DIV/0!"}},{"$f":"AVERAGE('Ввод данных ВЛК'!E29:E48)","v":{"$error":"#DIV/0!"}}]
[null,"HBsAg",null,null,null,null,null,"S",{"$f":"_xlfn.STDEV.S('Ввод данных ВЛК'!B29:B48)","v":{"$error":"#DIV/0!"}},{"$f":"_xlfn.STDEV.S('Ввод данных ВЛК'!C29:C48)","v":{"$error":"#DIV/0!"}},{"$f":"_xlfn.STDEV.S('Ввод данных ВЛК'!D29:D48)","v":{"$error":"#DIV/0!"}},{"$f":"_xlfn.STDEV.S('Ввод данных ВЛК'!E29:E48)","v":{"$error":"#DIV/0!"}}]
[null,"анти-ВГС",null,null,null,null,null,"X-3S",{"$f":"I2-3*I3","v":{"$error":"#DIV/0!"}},{"$f":"J2-3*J3","v":{"$error":"#DIV/0!"}},{"$f":"K2-3*K3","v":{"$error":"#DIV/0!"}},{"$f":"L2-3*L3","v":{"$error":"#DIV/0!"}}]
[null,"анти-ВИЧ-1",null,null,null,null,null,"X-2S",{"$f":"I2-2*I3","v":{"$error":"#DIV/0!"}},{"$f":"J2-2*J3","v":{"$error":"#DIV/0!"}},{"$error":"#DIV/0!"},{"$f":"L2-2*L3","v":{"$error":"#DIV/0!"}}]
[null,"-антипаллидум",null,null,null,null,null,"X",{"$f":"I2","v":{"$error":"#DIV/0!"}},{"$f":"J2","v":{"$error":"#DIV/0!"}},{"$error":"#DIV/0!"},{"$error":"#DIV/0!"}]
[null,null,null,null,null,null,null,"X+2S",{"$f":"I2+2*I3","v":{"$error":"#DIV/0!"}},{"$f":"J2+2*J3","v":{"$error":"#DIV/0!"}},{"$error":"#DIV/0!"},{"$f":"L2+2*L3","v":{"$error":"#DIV/0!"}}]
[null,null,null,null,null,null,null,"X+3S",{"$f":"I2+3*I3","v":{"$error":"#DIV/0!"}},{"$f":"J2+3*J3","v":{"$error":"#DIV/0!"}},{"$error":"#DIV/0!"},{"$error":"#DIV/0!"}]